[Event "36th Belgrade Trophy 2023"]
[Site "Belgrade"]
[Date "2023.11.29"]
[Round "5.6"]
[White "Pap, Misa"]
[Black "Besedes, Danilo"]
[Result "1-0"]
[ECO "B15"]
[WhiteElo "2426"]
[BlackElo "2277"]
[Annotator "TA"]
[PlyCount "67"]
[EventDate "2023.10.23"]
[EventType "swiss"]
[EventCountry "SRB"]
[SourceTitle "playchess.com"]
[Source "ChessBase"]
[SourceQuality "1"]
[TimeControl "40/5400+30:900+30"]

{[%evp 16,67,30,16,24,26,27,8,12,10,10,10,12,11,15,12,26,12,29,0,17,10,22,9,16,5,14,17,85,26,61,28,14,10,18,12,128,122,141,135,175,132,106,114,319,311,314,291,524,574,926,956,908,884]} 1. e4 {[%emt 0:00:10]} g6 {[%emt 0:00:58]} 2. d4 {[%emt 0:00:20]} Bg7 {[%emt 0:00:07]} 3. Nc3 {[%emt 0:00:47]} c6 {[%emt 0:00:22]} 4. h3 {[%emt 0:01:34]} d5 {[%emt 0:00:12]} 5. Nf3 {[%emt 0:00:05]} dxe4 {[%emt 0:00:50]} 6. Nxe4 {[%emt 0:00:04]} Nf6 {[%emt 0:00:11]} 7. Nxf6+ {[%emt 0:00:09]} exf6 {[%emt 0:00:07]} 8. Bd3 {[%emt 0:00:20]} O-O {[%emt 0:01:33]} 9. O-O {[%emt 0:00:05] Active counter play!} a5 {[%emt 0:02:24] B15: Caro-Kann: 3 Nc3: 3...g6 and 3...dxe4 4 Nxe4 Nf6 5 Nxf6+ exf6.} 10. Re1 {[%emt 0:02:37]} Na6 {[%emt 0:00:29]} 11. c3 {[%emt 0:00:48]} Nc7 {[%emt 1:28:47] The position is equal.} 12. Bd2 {[%emt 0:12:51] [#]} Be6 $146 {[%emt 0:00:00]} ({Predecessor:} 12... a4 13. c4 Ne6 14. Bc3 Qd6 15. Qd2 Rd8 16. Rad1 b6 17. Bf1 Bb7 18. Qc2 Qc7 {1-0 Santos Latasa,J (2639)-Vastrukhin,O (2376) Wch Rapid Warsaw 2021 (8)}) 13. c4 {[%emt 0:01:49]} Qd7 {[%emt 0:00:00]} 14. Qc2 {[%emt 0:00:35]} b5 {[%emt 0:00:00]} 15. b3 {[%emt 0:00:13]} Rfc8 {[%emt 0:00:00]} 16. Bc3 {[%emt 0:10:49]} Ne8 {[%emt 0:00:00]} 17. Bd2 {[%emt 0:28:15]} (17. a4 $5 {[%cal Ra4b5]}) 17... Nd6 {[%emt 0:00:00]} 18. Rad1 {[%emt 0:00:51]} Bf8 {[%emt 0:00:00]} 19. Bf4 {[%emt 0:04:29]} Nf5 {[%emt 0:00:00]} 20. Be4 {[%emt 0:01:39]} bxc4 {[%emt 0:00:00]} 21. bxc4 {[%emt 0:00:12]} Nd6 {[%emt 0:00:00]} (21... Bb4 $11 {keeps the balance.}) 22. Nd2 {[%emt 0:02:54]} ({White should play} 22. Ne5 $1 $16 {[%cal Re5d7]} fxe5 23. dxe5) 22... Qa7 {[%emt 0:00:00]} 23. Bxd6 {[%emt 0:12:19]} Bxd6 {[%emt 0:00:00]} 24. c5 {[%emt 0:00:05]} Bf8 {[%emt 0:00:00]} 25. Nc4 {[%emt 0:00:19]} Rc7 {[%emt 0:00:00] [#]} (25... Bxc4 $11 {remains equal.} 26. Qxc4 f5) 26. Nb6 $1 $16 {[%emt 0:00:53]} Rd8 {[%emt 0:00:00]} 27. Qa4 {[%emt 0:01:48]} Qb7 {[%emt 0:00:00]} 28. Qxa5 {[%emt 0:03:02]} f5 {[%emt 0:00:00]} 29. Bf3 {[%emt 0:01:11]} Bg7 $2 {[%emt 0:00:00] [#] A mistake that costs the game.} (29... Qa7 $16 30. Qxa7 Rxa7 31. Bxc6 Bxa2) 30. d5 $1 $18 {[%emt 0:05:04][%mdl 512]} cxd5 {[%emt 0:00:00]} 31. Bxd5 {[%emt 0:01:22]} Rxd5 {[%emt 0:04:53]} (31... Qb8 {is a better defense.} 32. a4 Ra7) 32. Nxd5 {[%emt 0:02:57] White is clearly winning.} Rc8 {[%emt 0:00:13] [#]} 33. c6 $1 {[%emt 0:02:42]} Rxc6 {[%emt 0:01:02]} 34. Rb1 {[%emt 0:02:33] Weighted Error Value: White=0.09 (flawless) /Black=0.40} 1-0

[Event "36th Belgrade Trophy 2023"]
[Site "Belgrade"]
[Date "2023.11.29"]
[Round "5.7"]
[White "Gusev, Mikhail"]
[Black "Antic, Dejan"]
[Result "1-0"]
[ECO "C12"]
[WhiteElo "2055"]
[BlackElo "2362"]
[Annotator "RC"]
[PlyCount "87"]
[EventDate "2023.10.23"]
[EventType "swiss"]
[EventCountry "SRB"]
[SourceTitle "playchess.com"]
[Source "ChessBase"]
[SourceQuality "1"]
[TimeControl "40/5400+30:900+30"]

1. d4 {[%emt 0:00:11]} e6 {[%emt 0:01:04]} 2. e4 {[%emt 0:00:11]} d5 {[%emt 0:00:18]} 3. Nc3 {[%emt 0:00:14]} Nf6 {[%emt 0:00:35]} 4. Bg5 {[%emt 0:00:50]} h6 {[%emt 0:00:46]} 5. Bxf6 {[%emt 0:01:25]} Qxf6 {[%emt 0:00:07]} 6. exd5 {[%emt 0:05:57]} Bb4 {[%emt 0:00:11]} 7. Bb5+ {[%emt 0:03:17]} Bd7 {[%emt 0:02:53]} 8. Bxd7+ {[%emt 0:00:58]} Nxd7 {[%emt 0:00:07]} 9. dxe6 {[%emt 0:00:24]} Qxe6+ {[%emt 0:00:06]} 10. Qe2 {[%emt 0:00:26]} Bxc3+ {[%emt 0:00:08]} 11. bxc3 {[%emt 0:00:04]} Qxe2+ {[%emt 0:00:08]} 12. Nxe2 {[%emt 0:01:36]} O-O-O {[%emt 0:00:21]} 13. O-O-O {[%emt 0:01:38]} Nb6 {[%emt 0:03:39]} 14. Rhe1 {[%emt 0:02:01]} Rd5 {[%emt 0:03:06]} 15. Nf4 {[%emt 0:05:47]} Ra5 {[%emt 0:04:45]} 16. Kb2 {[%emt 0:00:23]} Nc4+ {[%emt 0:05:18]} 17. Ka1 {[%emt 0:02:34]} Ra3 {[%emt 0:11:51]} 18. Re7 {[%emt 0:06:02]} Nd6 {[%emt 0:17:12]} 19. Rd3 {[%emt 0:12:26]} Kd8 {[%emt 0:04:51]} 20. Re1 {[%emt 0:04:39]} Re8 {[%emt 0:04:29]} 21. Rxe8+ {[%emt 0:01:23]} Kxe8 {[%emt 0:00:14]} 22. Nd5 {[%emt 0:01:07]} Kd7 {[%emt 0:04:49]} 23. Ne3 {[%emt 0:02:13]} Ra4 {[%emt 0:01:36]} 24. Kb2 {[%emt 0:01:55]} f5 {[%emt 0:03:05]} 25. f4 {[%emt 0:05:54]} g5 {[%emt 0:04:57]} 26. g3 {[%emt 0:01:10]} c6 {[%emt 0:02:42]} 27. Rd1 {[%emt 0:02:54]} Ke6 {[%emt 0:01:55]} 28. Kb3 {[%emt 0:06:39]} b5 {[%emt 0:01:31]} 29. Re1 {[%emt 0:02:18]} Kf7 {[%emt 0:02:37]} 30. fxg5 {[%emt 0:04:14]} hxg5 {[%emt 0:00:07]} 31. Rf1 {[%emt 0:00:19]} Kg6 {[%emt 0:01:10]} 32. h4 {[%emt 0:00:54]} Ra6 {[%emt 0:01:10]} 33. Nxf5 {[%emt 0:07:27]} Nxf5 {[%emt 0:03:26]} 34. h5+ {[%emt 0:00:05]} Kxh5 {[%emt 0:00:05]} 35. Rxf5 {[%emt 0:00:04]} Kg4 {[%emt 0:00:26]} 36. Re5 {[%emt 0:01:13]} Rb6 {[%emt 0:02:42]} 37. Kb4 {[%emt 0:01:19]} Ra6 {[%emt 0:01:03]} 38. Kc5 {[%emt 0:01:29]} Rxa2 {[%emt 0:00:39]} 39. Kxc6 {[%emt 0:00:06]} Rxc2 {[%emt 0:00:32]} 40. Rc5 {[%emt 0:00:00]} a6 {[%emt 0:00:00]} 41. d5 {[%emt 0:01:36]} Kf5 {[%emt 0:06:24]} 42. d6+ {[%emt 0:01:11]} Ke6 {[%emt 0:00:27]} 43. Kc7 {[%emt 0:00:11]} a5 {[%emt 0:03:17]} 44. d7 {[%emt 0:30:46]} 1-0

[Event "36th Belgrade Trophy 2023"]
[Site "Belgrade"]
[Date "2023.11.29"]
[Round "5.8"]
[White "Milosevic, Milos"]
[Black "Popchev, Milko"]
[Result "1-0"]
[ECO "C41"]
[WhiteElo "2362"]
[BlackElo "2244"]
[Annotator "RC"]
[PlyCount "85"]
[EventDate "2023.10.23"]
[EventType "swiss"]
[EventCountry "SRB"]
[SourceTitle "playchess.com"]
[Source "ChessBase"]
[SourceQuality "1"]
[TimeControl "40/5400+30:900+30"]

1. e4 {[%emt 0:07:57]} d6 {[%emt 0:03:28]} 2. d4 {[%emt 0:00:06]} e5 {[%emt 0:00:10]} 3. Nf3 {[%emt 0:00:04]} exd4 {[%emt 0:00:25]} 4. Nxd4 {[%emt 0:00:04]} Nf6 {[%emt 0:00:19]} 5. Nc3 {[%emt 0:00:03]} Be7 {[%emt 0:00:18]} 6. Bf4 {[%emt 0:00:04]} O-O {[%emt 0:01:12]} 7. Qd2 {[%emt 0:00:05]} Nc6 {[%emt 0:05:16]} 8. O-O-O {[%emt 0:00:06]} Nxd4 {[%emt 0:01:51]} 9. Qxd4 {[%emt 0:00:05]} Nd7 {[%emt 0:00:46]} 10. Kb1 {[%emt 0:02:21]} Nb6 {[%emt 0:01:13]} 11. f3 {[%emt 0:00:35]} Bg5 {[%emt 0:03:05]} 12. Qd2 {[%emt 0:02:28]} Bxf4 {[%emt 0:00:38]} 13. Qxf4 {[%emt 0:00:04]} Qe7 {[%emt 0:00:42]} 14. g4 {[%emt 0:02:54]} Be6 {[%emt 0:01:58]} 15. Qg3 {[%emt 0:06:37]} Rad8 {[%emt 0:00:59]} 16. f4 {[%emt 0:00:17]} f6 {[%emt 0:01:24]} 17. Bg2 {[%emt 0:04:13]} c6 {[%emt 0:00:19]} 18. Rhe1 {[%emt 0:01:59]} Bf7 {[%emt 0:01:10]} 19. h4 {[%emt 0:00:47]} Qe6 {[%emt 0:05:30]} 20. b3 {[%emt 0:01:03]} Qe7 {[%emt 0:00:23]} 21. g5 {[%emt 0:02:30]} Bh5 {[%emt 0:01:08]} 22. Rd3 {[%emt 0:00:17]} Rde8 {[%emt 0:05:08]} 23. Rde3 {[%emt 0:03:15]} Qf7 {[%emt 0:01:39]} 24. Rf1 {[%emt 0:07:07]} Qe7 {[%emt 0:01:23]} 25. Ree1 {[%emt 0:02:02]} Rd8 {[%emt 0:02:42]} 26. Rg1 {[%emt 0:02:24]} Qf7 {[%emt 0:00:39]} 27. Bh3 {[%emt 0:00:29]} Qe7 {[%emt 0:03:51]} 28. gxf6 {[%emt 0:03:18]} Qxf6 {[%emt 0:02:17]} 29. e5 {[%emt 0:00:37]} dxe5 {[%emt 0:01:10]} 30. Rxe5 {[%emt 0:01:53]} Bf7 {[%emt 0:06:59]} 31. Ne4 {[%emt 0:00:57]} Qh6 {[%emt 0:00:45]} 32. Rg5 {[%emt 0:03:38]} Kh8 {[%emt 0:03:57]} 33. Rxg7 {[%emt 0:02:23]} Nd5 {[%emt 0:00:57]} 34. f5 {[%emt 0:02:15]} Rg8 {[%emt 0:08:25]} 35. Rxg8+ {[%emt 0:00:33]} Rxg8 {[%emt 0:01:33]} 36. Qe5+ {[%emt 0:00:24]} Rg7 {[%emt 0:00:15]} 37. Rg5 {[%emt 0:02:20]} b5 {[%emt 0:02:02]} 38. c4 {[%emt 0:00:35]} bxc4 {[%emt 0:01:23]} 39. bxc4 {[%emt 0:00:03]} Nb6 {[%emt 0:00:25]} 40. Nd6 {[%emt 0:00:00]} Kg8 {[%emt 0:00:00]} 41. Qe7 {[%emt 0:05:28]} Rxg5 {[%emt 0:02:43]} 42. Qxf7+ {[%emt 0:00:08]} Kh8 {[%emt 0:00:07]} 43. hxg5 {[%emt 0:00:30]} 1-0

[Event "36th Belgrade Trophy 2023"]
[Site "Belgrade"]
[Date "2023.11.29"]
[Round "5.9"]
[White "Poleksic, Dusan"]
[Black "Mezentsev, Ivan"]
[Result "0-1"]
[ECO "D36"]
[WhiteElo "2068"]
[BlackElo "2362"]
[Annotator "RC"]
[PlyCount "86"]
[EventDate "2023.10.23"]
[EventType "swiss"]
[EventCountry "SRB"]
[SourceTitle "playchess.com"]
[Source "ChessBase"]
[SourceQuality "1"]
[TimeControl "40/5400+30:900+30"]

1. d4 {[%emt 0:14:55]} d5 {[%emt 1:31:00]} 2. c4 {[%emt 0:00:59]} e6 {[%emt 0:00:30]} 3. Nc3 {[%emt 1:16:06]} Nf6 {[%emt 0:00:30]} 4. cxd5 {[%emt 0:00:00]} exd5 {[%emt 0:00:00]} 5. Bg5 {[%emt 0:01:00]} c6 {[%emt 0:01:00]} 6. Qc2 {[%emt 0:00:30]} Be7 {[%emt 0:00:30]} 7. e3 {[%emt 0:00:30]} Nbd7 {[%emt 0:00:00]} 8. Bd3 h6 {[%emt 0:01:00]} 9. Bh4 {[%emt 0:00:00]} Nh5 {[%emt 0:00:30]} 10. Bxe7 {[%emt 0:00:00]} Qxe7 {[%emt 0:00:30]} 11. O-O-O {[%emt 0:00:00]} Nb6 {[%emt 0:00:30]} 12. h3 {[%emt 0:00:00]} Nf6 {[%emt 0:00:30]} 13. Nf3 {[%emt 0:03:00]} Be6 {[%emt 0:00:00]} 14. Ne5 {[%emt 0:00:00]} O-O-O {[%emt 0:01:00]} 15. Kb1 {[%emt 0:01:00]} Kb8 {[%emt 0:00:30]} 16. Na4 {[%emt 0:00:30]} Nfd7 {[%emt 0:00:30]} 17. Nxb6 {[%emt 0:00:30]} Nxe5 {[%emt 0:00:30]} 18. Na4 {[%emt 0:00:00]} Nxd3 {[%emt 0:00:00]} 19. Qxd3 {[%emt 0:01:00]} Qg5 {[%emt 0:00:00]} 20. g4 {[%emt 0:00:30]} Bc8 {[%emt 0:01:30]} 21. Ka1 {[%emt 0:00:00]} h5 {[%emt 0:00:00]} 22. f4 {[%emt 0:01:00]} Qe7 {[%emt 0:01:00]} 23. g5 {[%emt 0:00:30]} Rde8 {[%emt 0:00:30]} 24. Rde1 {[%emt 0:00:30]} h4 {[%emt 0:00:00]} 25. Nc5 {[%emt 0:00:30]} f6 {[%emt 0:00:00]} 26. gxf6 {[%emt 0:00:00]} gxf6 {[%emt 0:01:30]} 27. Rh2 {[%emt 0:01:00]} Rhg8 {[%emt 0:00:30]} 28. Rhe2 {[%emt 0:00:30]} Rg3 {[%emt 0:00:00]} 29. Qd2 {[%emt 0:00:30]} Bf5 {[%emt 0:00:00]} 30. a3 {[%emt 0:00:00]} Qh7 {[%emt 0:01:30]} 31. Qb4 {[%emt 0:01:00]} b6 {[%emt 0:00:30]} 32. Na4 {[%emt 0:00:30]} Qe7 {[%emt 0:00:00]} 33. Qc3 {[%emt 0:00:30]} Qd6 {[%emt 0:00:00]} 34. Qd2 {[%emt 0:00:30]} Bxh3 {[%emt 0:00:00]} 35. e4 {[%emt 0:00:00]} dxe4 {[%emt 0:02:00]} 36. Rxe4 {[%emt 0:00:04]} Rxe4 {[%emt 0:00:00]} 37. Rxe4 {[%emt 0:00:00]} Rg1+ {[%emt 0:00:00]} 38. Re1 {[%emt 0:00:13]} Rxe1+ {[%emt 0:00:00]} 39. Qxe1 {[%emt 0:00:01]} Qxd4 {[%emt 0:00:00]} 40. Qe8+ {[%emt 0:02:42]} Bc8 {[%emt 0:02:30]} 41. Nc3 {[%emt 0:15:30]} h3 {[%emt 0:00:00]} 42. Qxc6 {[%emt 0:00:30]} h2 {[%emt 0:16:00]} 43. Nb5 {[%emt 0:00:00]} Qc5 {[%emt 0:00:00]} 0-1

[Event "36th Belgrade Trophy 2023"]
[Site "Belgrade"]
[Date "2023.11.29"]
[Round "5.10"]
[White "Bjelanovic, Mile"]
[Black "Enkhnar, Enkhbaatar"]
[Result "0-1"]
[ECO "B30"]
[WhiteElo "2033"]
[BlackElo "2327"]
[Annotator "RC"]
[PlyCount "51"]
[EventDate "2023.10.23"]
[EventType "swiss"]
[EventCountry "SRB"]
[SourceTitle "playchess.com"]
[Source "ChessBase"]
[SourceQuality "1"]
[TimeControl "40/5400+30:900+30"]

1. e4 {[%emt 0:00:04]} c5 {[%emt 0:00:03]} 2. Nf3 {[%emt 0:00:07]} Nc6 {[%emt 1:31:27]} 3. Bb5 {[%emt 1:31:49]} Qc7 {[%emt 0:00:30]} 4. O-O {[%emt 0:00:30]} a6 {[%emt 0:00:30]} 5. Bxc6 {[%emt 0:00:00]} dxc6 {[%emt 0:00:00]} 6. d3 e5 {[%emt 0:00:00]} 7. Nbd2 f6 {[%emt 0:00:00]} 8. Nc4 Be6 {[%emt 0:02:00]} 9. Bd2 {[%emt 0:02:30]} a5 {[%emt 0:00:00]} 10. Qe2 g5 {[%emt 0:00:00]} 11. a4 Ne7 {[%emt 0:01:30]} 12. c3 {[%emt 0:01:30]} Ng6 {[%emt 0:00:00]} 13. Rfd1 h5 {[%emt 0:00:00]} 14. Be3 g4 {[%emt 0:00:00]} 15. Ne1 Qf7 {[%emt 0:00:00]} 16. Rd2 h4 {[%emt 0:00:00]} 17. g3 f5 {[%emt 0:03:00]} 18. exf5 {[%emt 0:00:00]} Qxf5 {[%emt 0:00:30]} 19. d4 {[%emt 0:03:30]} cxd4 {[%emt 0:00:00]} 20. cxd4 Qe4 {[%emt 0:00:00]} 21. Nb6 hxg3 {[%emt 0:00:00]} 22. fxg3 Rd8 {[%emt 0:00:00]} 23. d5 Bb4 {[%emt 0:02:30]} 24. Rc2 {[%emt 0:02:30]} cxd5 {[%emt 0:00:30]} 25. Nd3 {[%emt 0:00:30]} d4 {[%emt 0:00:00]} 26. Bg5 {[%emt 0:00:00]} 0-1

[Event "36th Belgrade Trophy 2023"]
[Site "Belgrade"]
[Date "2023.11.29"]
[Round "5.11"]
[White "Veleski, Robert"]
[Black "Scekic, Veljko"]
[Result "1/2-1/2"]
[ECO "A46"]
[WhiteElo "2064"]
[BlackElo "2211"]
[Annotator "NA RC"]
[PlyCount "80"]
[EventDate "2023.10.23"]
[EventType "swiss"]
[EventCountry "SRB"]
[SourceTitle "playchess.com"]
[Source "ChessBase"]
[SourceQuality "1"]
[TimeControl "40/5400+30:900+30"]

1. d4 {[%emt 1:31:00]} Nf6 {[%emt 1:31:00]} 2. Bg5 {[%emt 0:00:30]} e6 {[%emt 0:00:30]} 3. e4 {[%emt 0:00:30]} h6 {[%emt 0:00:00]} 4. Bxf6 Qxf6 {[%emt 0:01:00]} 5. Nf3 {[%emt 0:01:00]} d6 {[%emt 0:00:30]} 6. Nc3 {[%emt 0:00:30]} c6 {[%emt 0:00:00]} 7. e5 Qd8 {[%emt 0:01:00]} 8. exd6 {[%emt 0:01:00]} Nd7 {[%emt 0:00:30]} 9. Bc4 {[%emt 0:00:30]} Bxd6 {[%emt 0:00:30]} 10. Ne4 {[%emt 0:00:30]} Nf6 {[%emt 0:00:30]} 11. Nxd6+ {[%emt 0:00:30]} Qxd6 {[%emt 0:00:30]} 12. O-O {[%emt 0:00:30]} O-O {[%emt 0:00:30]} 13. a4 {[%emt 0:00:30]} b6 {[%emt 0:00:00]} 14. Qe2 c5 {[%emt 0:01:00]} 15. Rfd1 {[%emt 0:01:00]} Bb7 {[%emt 0:00:30]} 16. Qe5 {[%emt 0:00:30]} Qxe5 {[%emt 0:00:30]} 17. Nxe5 {[%emt 0:00:30]} Rfc8 {[%emt 0:00:30]} 18. c3 {[%emt 0:00:30]} cxd4 {[%emt 0:00:30]} 19. Rxd4 {[%emt 0:00:30]} Rc5 {[%emt 0:00:30]} 20. f4 {[%emt 0:00:30]} Rac8 {[%emt 0:00:30]} 21. Rad1 {[%emt 0:00:30]} g5 {[%emt 0:00:30]} 22. Rd8+ {[%emt 0:00:30]} Rxd8 {[%emt 0:00:00]} 23. Rxd8+ Kg7 {[%emt 0:01:00]} 24. g3 {[%emt 0:01:00]} gxf4 {[%emt 0:00:30]} 25. gxf4 {[%emt 0:00:30]} Rc7 {[%emt 0:00:00]} 26. Kf2 Ng4+ {[%emt 0:01:00]} 27. Nxg4 {[%emt 0:01:00]} Rxc4 {[%emt 0:00:30]} 28. Kg3 {[%emt 0:00:30]} Rxa4 {[%emt 0:00:30]} 29. Ne5 {[%emt 0:00:30]} Be4 {[%emt 0:00:30]} 30. Rd7 {[%emt 0:00:30]} Bg6 {[%emt 0:00:30]} 31. Nc6 {[%emt 0:00:30]} a6 {[%emt 0:00:30]} 32. Nd4 {[%emt 0:00:30]} Kf6 {[%emt 0:00:30]} 33. f5 {[%emt 0:00:30]} Bxf5 {[%emt 0:00:30]} 34. Nxf5 {[%emt 0:00:30]} Kxf5 {[%emt 0:00:00]} 35. Rxf7+ Ke5 {[%emt 0:00:00]} 36. h4 {[%emt 0:00:00]} Ra2 {[%emt 0:01:30]} 37. b4 Rc2 38. Rc7 {[%emt 0:02:00]} h5 {[%emt 0:00:00]} 39. Rc6 Kd5 {[%emt 0:01:30]} 40. Rxb6 {[%emt 0:00:00]} Rxc3+ {[%emt 0:00:30]} 1/2-1/2

[Event "36th Belgrade Trophy 2023"]
[Site "Belgrade"]
[Date "2023.11.29"]
[Round "5.12"]
[White "Savic, Mihailo S"]
[Black "Gvozdenovic, Milos"]
[Result "1-0"]
[ECO "C68"]
[WhiteElo "2157"]
[BlackElo "2057"]
[Annotator "NA RC"]
[PlyCount "61"]
[EventDate "2023.10.23"]
[EventType "swiss"]
[EventCountry "SRB"]
[SourceTitle "playchess.com"]
[Source "ChessBase"]
[SourceQuality "1"]
[TimeControl "40/5400+30:900+30"]

1. e4 {[%emt 1:31:00]} e5 {[%emt 1:31:00]} 2. Nf3 {[%emt 0:00:00]} Nc6 {[%emt 0:00:30]} 3. Bb5 {[%emt 0:00:00]} a6 {[%emt 0:00:00]} 4. Bxc6 {[%emt 0:01:30]} dxc6 {[%emt 0:01:00]} 5. O-O {[%emt 0:00:30]} Bg4 {[%emt 0:00:00]} 6. h3 {[%emt 0:00:00]} h5 {[%emt 0:00:00]} 7. d3 {[%emt 0:00:00]} Qf6 {[%emt 0:00:00]} 8. Nbd2 {[%emt 0:00:00]} g5 {[%emt 0:02:00]} 9. b4 {[%emt 0:02:00]} Qg7 {[%emt 0:00:30]} 10. Nc4 {[%emt 0:00:30]} f6 {[%emt 0:00:30]} 11. Rb1 {[%emt 0:00:30]} Be6 {[%emt 0:00:00]} 12. h4 {[%emt 0:00:30]} O-O-O {[%emt 0:01:00]} 13. Qe2 {[%emt 0:00:30]} gxh4 {[%emt 0:00:30]} 14. Nxh4 {[%emt 0:00:30]} Ne7 {[%emt 0:00:30]} 15. Ne3 {[%emt 0:00:30]} Rg8 {[%emt 0:00:30]} 16. a4 {[%emt 0:00:30]} Ng6 {[%emt 0:00:30]} 17. Nxg6 {[%emt 0:00:30]} Qxg6 {[%emt 0:00:30]} 18. Qf3 {[%emt 0:00:30]} Bh6 {[%emt 0:00:30]} 19. Nf5 {[%emt 0:00:30]} Bxf5 {[%emt 0:00:30]} 20. exf5 {[%emt 0:00:00]} Qg7 {[%emt 0:00:30]} 21. Be3 {[%emt 0:01:00]} h4 {[%emt 0:00:30]} 22. b5 {[%emt 0:00:00]} e4 {[%emt 0:00:00]} 23. dxe4 {[%emt 0:01:00]} Bxe3 {[%emt 0:01:00]} 24. fxe3 {[%emt 0:00:30]} Qh7 {[%emt 0:00:00]} 25. bxa6 {[%emt 0:00:30]} b6 {[%emt 0:01:00]} 26. Rbd1 {[%emt 0:00:30]} Rxd1 {[%emt 0:00:30]} 27. Rxd1 {[%emt 0:00:30]} h3 {[%emt 0:00:00]} 28. g3 {[%emt 0:00:00]} h2+ {[%emt 0:00:00]} 29. Kg2 {[%emt 0:01:00]} Rh8 {[%emt 0:01:30]} 30. Kh1 {[%emt 0:00:00]} Qh3 {[%emt 0:00:00]} 31. e5 {[%emt 0:00:00]} 1-0

[Event "36th Belgrade Trophy 2023"]
[Site "Belgrade"]
[Date "2023.11.29"]
[Round "5.13"]
[White "Milicevic, Aleksa"]
[Black "Savic, Nemanja"]
[Result "0-1"]
[ECO "D37"]
[WhiteElo "2029"]
[BlackElo "2136"]
[Annotator "NA RC"]
[PlyCount "72"]
[EventDate "2023.10.23"]
[EventType "swiss"]
[EventCountry "SRB"]
[SourceTitle "playchess.com"]
[Source "ChessBase"]
[SourceQuality "1"]
[TimeControl "40/5400+30:900+30"]

1. d4 {[%emt 0:00:02]} d5 {[%emt 0:00:21]} 2. Nf3 {[%emt 0:00:10]} Nf6 {[%emt 0:00:08]} 3. c4 {[%emt 0:00:22]} e6 {[%emt 0:00:24]} 4. Nc3 {[%emt 0:00:22]} a6 {[%emt 0:00:42]} 5. cxd5 {[%emt 0:08:00]} exd5 {[%emt 0:00:16]} 6. Bf4 {[%emt 0:00:37]} Bd6 {[%emt 0:00:18]} 7. Bg3 {[%emt 0:00:28]} Bxg3 {[%emt 0:00:16]} 8. hxg3 {[%emt 0:00:03]} c6 {[%emt 0:00:07]} 9. e3 {[%emt 0:00:34]} Be6 {[%emt 0:00:10]} 10. Bd3 {[%emt 0:00:22]} Nbd7 {[%emt 0:00:10]} 11. Qc2 {[%emt 0:03:27]} Qe7 {[%emt 0:00:15]} 12. O-O {[%emt 0:01:58]} O-O {[%emt 0:00:49]} 13. Rfe1 {[%emt 0:09:38]} Rfe8 {[%emt 0:14:23]} 14. Rab1 {[%emt 0:04:30]} g6 {[%emt 0:34:51]} 15. Rbc1 {[%emt 0:07:11]} Rec8 {[%emt 0:08:22]} 16. Na4 {[%emt 0:09:27]} Ne8 {[%emt 0:00:56]} 17. a3 {[%emt 0:04:16]} Nd6 {[%emt 0:01:11]} 18. Ne5 {[%emt 0:48:03]} Re8 {[%emt 0:04:16]} 19. Nf3 {[%emt 0:00:00]} Bf5 {[%emt 0:01:04]} 20. Bxf5 {[%emt 0:01:00]} Nxf5 {[%emt 0:00:06]} 21. Qb3 {[%emt 0:00:00]} Nd6 {[%emt 0:02:34]} 22. Nd2 {[%emt 0:00:00]} Kg7 {[%emt 0:03:33]} 23. Nb6 {[%emt 0:00:00]} Nxb6 {[%emt 0:00:55]} 24. Qxb6 {[%emt 0:00:00]} h5 {[%emt 0:00:24]} 25. Qc5 {[%emt 0:00:00]} Rad8 {[%emt 0:02:04]} 26. Qc3 {[%emt 0:00:00]} Qf6 {[%emt 0:02:18]} 27. Nf3 {[%emt 0:00:00]} Ne4 {[%emt 0:01:05]} 28. Qc2 {[%emt 0:00:00]} g5 {[%emt 0:02:18]} 29. Qe2 {[%emt 0:00:00]} Rh8 {[%emt 0:11:26]} 30. b4 {[%emt 0:00:00]} Rh6 {[%emt 0:04:51]} 31. Ne5 {[%emt 0:00:00]} g4 {[%emt 0:00:59]} 32. a4 {[%emt 0:00:00]} Qg5 {[%emt 0:02:55]} 33. b5 {[%emt 0:00:00]} axb5 {[%emt 0:00:03]} 34. axb5 {[%emt 0:00:00]} Rdd6 {[%emt 0:00:08]} 35. bxc6 {[%emt 0:00:16]} bxc6 {[%emt 0:00:01]} 36. Rc2 {[%emt 0:04:44]} f6 {[%emt 0:00:28]} 0-1

[Event "36th Belgrade Trophy 2023"]
[Site "Belgrade"]
[Date "2023.11.29"]
[Round "5.14"]
[White "Trailovic, Aleksandar"]
[Black "Kostic, Vladimir V"]
[Result "1-0"]
[ECO "D15"]
[WhiteElo "2132"]
[BlackElo "2041"]
[Annotator "NA RC"]
[PlyCount "94"]
[EventDate "2023.10.23"]
[EventType "swiss"]
[EventCountry "SRB"]
[SourceTitle "playchess.com"]
[Source "ChessBase"]
[SourceQuality "1"]
[TimeControl "40/5400+30:900+30"]

1. d4 {[%emt 1:31:00]} d5 {[%emt 1:31:00]} 2. c4 {[%emt 0:00:30]} c6 {[%emt 0:00:00]} 3. Nc3 Nf6 {[%emt 0:00:00]} 4. Nf3 a6 {[%emt 0:01:30]} 5. c5 {[%emt 0:01:30]} Nbd7 {[%emt 0:00:30]} 6. Bf4 {[%emt 0:00:30]} g6 {[%emt 0:00:00]} 7. e3 Bg7 {[%emt 0:01:00]} 8. h3 {[%emt 0:00:00]} O-O {[%emt 0:00:00]} 9. Bd3 Ne8 {[%emt 0:01:00]} 10. O-O {[%emt 0:02:00]} Nc7 {[%emt 0:00:00]} 11. Re1 Re8 {[%emt 0:01:00]} 12. Qc2 {[%emt 0:01:00]} e5 {[%emt 0:00:30]} 13. Nxe5 {[%emt 0:00:00]} Nxe5 {[%emt 0:00:30]} 14. Bxe5 {[%emt 0:00:00]} Bxe5 15. dxe5 Qe7 {[%emt 0:01:00]} 16. f4 {[%emt 0:00:00]} Qxc5 {[%emt 0:00:00]} 17. Ne4 Qxc2 {[%emt 0:00:00]} 18. Nf6+ Kh8 {[%emt 0:01:30]} 19. Bxc2 {[%emt 0:00:00]} Re7 {[%emt 0:00:00]} 20. Kf2 Ne8 {[%emt 0:01:00]} 21. e4 {[%emt 0:04:30]} dxe4 {[%emt 0:00:30]} 22. Nxe4 {[%emt 0:00:30]} Bf5 {[%emt 0:00:00]} 23. Rad1 Kg7 {[%emt 0:00:00]} 24. Bb3 {[%emt 0:00:00]} Bxe4 25. Rxe4 Nc7 {[%emt 0:00:00]} 26. Red4 Rae8 {[%emt 0:00:00]} 27. Rd7 f6 {[%emt 0:03:00]} 28. exf6+ {[%emt 0:00:00]} Kxf6 {[%emt 0:00:00]} 29. R1d6+ {[%emt 0:00:00]} Kg7 {[%emt 0:00:00]} 30. a4 {[%emt 0:04:00]} a5 {[%emt 0:00:00]} 31. g4 Na6 {[%emt 0:00:00]} 32. f5 gxf5 {[%emt 0:02:30]} 33. gxf5 {[%emt 0:01:30]} Rxd7 {[%emt 0:00:00]} 34. f6+ Kh8 {[%emt 0:00:00]} 35. Rxd7 Nc5 {[%emt 0:00:00]} 36. Re7 Rf8 {[%emt 0:00:00]} 37. Bf7 Nd3+ {[%emt 0:02:30]} 38. Ke3 {[%emt 0:01:24]} Nxb2 39. Rxb7 Nxa4 {[%emt 0:00:00]} 40. Kd4 h6 {[%emt 0:00:00]} 41. Ke5 {[%emt 0:10:35]} Nc5 {[%emt 0:00:00]} 42. Ra7 {[%emt 0:00:29]} Nd3+ {[%emt 0:17:30]} 43. Kf5 {[%emt 0:05:12]} Rd8 {[%emt 0:00:00]} 44. Rxa5 Rb8 {[%emt 0:00:00]} 45. Bc4 Rd8 {[%emt 0:01:30]} 46. Bxd3 {[%emt 0:01:49]} Rxd3 {[%emt 0:00:00]} 47. Ra2 {[%emt 0:00:00]} Kh7 {[%emt 0:00:00]} 1-0